fUST/lending_fUST_20250521
["ID","MTS","AMOUNT","RATE_DAILY","PERIOD"]
[361796069,1747806639942,-288.17940844,0.00017058,2]
[361796070,1747806639952,-430.0,0.0001726,2]
[361796071,1747806639962,-430.0,0.0001726,2]
[361796072,1747806639971,-430.0,0.0001726,2]
[361796073,1747806639981,-430.0,0.0001726,2]
[361796074,1747806639991,-481.7,0.0001726,2]
[361796075,1747806640002,-430.0,0.0001726,2]
[361796076,1747806640012,-1107.44,0.0001726,2]
[361796077,1747806640022,-967.93,0.0001726,2]
[361796078,1747806640032,-430.0,0.0001726,2]
[361796079,1747806640042,-274.99483736,0.0001726,2]
[361796100,1747806640778,-155.00516264,0.0001726,2]
[361796101,1747806640788,-430.0,0.0001726,2]
[361796102,1747806640798,-239.94938083,0.0001726,2]
[361796103,1747806640809,-190.05061917,0.0001726,2]
[361796104,1747806640819,-852.39,0.0001726,2]
[361796105,1747806640829,-131.07302894,0.0001726,2]
[361796106,1747806640842,-298.92697106,0.0001726,2]
[361796107,1747806640851,-430.0,0.0001726,2]
[361796108,1747806640861,-430.0,0.0001726,2]
[361796109,1747806640871,-430.0,0.0001726,2]
[361796110,1747806640881,-430.0,0.0001726,2]
[361796111,1747806640891,-430.0,0.0001726,2]
[361796113,1747806640900,-430.0,0.0001726,2]
[361796114,1747806640910,-430.0,0.0001726,2]
[361796115,1747806640919,-430.0,0.0001726,2]
[361796116,1747806640928,-546.11,0.0001726,2]
[361796117,1747806640938,-430.0,0.0001726,2]
[361796118,1747806640948,-430.0,0.0001726,2]
[361796119,1747806640957,-237.94756946,0.0001726,2]
[361796137,1747806644494,-4710.8,0.00013159,2]
[361796139,1747806644507,-289.2,0.00013159,2]
[361796141,1747806644517,-430.0,0.00016438,2]
[361796143,1747806644526,-922.87,0.00016438,2]
[361796145,1747806644535,-430.0,0.00016712,2]
[361796147,1747806644545,-922.87,0.00016712,2]
[361796148,1747806644554,-430.0,0.00016986,2]
[361796150,1747806644564,-922.87,0.00016986,2]
[361796152,1747806644577,-192.05243054,0.0001726,2]
[361796153,1747806644587,-488.99,0.0001726,2]
[361796154,1747806644598,-430.0,0.0001726,2]
[361796155,1747806644607,-430.0,0.0001726,2]
[361796156,1747806644618,-430.0,0.0001726,2]
[361796157,1747806644628,-430.0,0.0001726,2]
[361796158,1747806644637,-922.87,0.0001726,2]
[361796159,1747806644647,-3704.68119828,0.00017279,2]
[361796160,1747806644662,-165.0746979,0.00017434,2]
[361796162,1747806644673,-430.0,0.00017534,2]
[361796164,1747806644682,-430.0,0.00017534,2]
[361796165,1747806644694,-362.74,0.00017534,2]
[361796166,1747806644704,-430.0,0.00017534,2]
[361796167,1747806644714,-430.0,0.00017534,2]
[361796168,1747806644724,-967.93,0.00017534,2]
[361796171,1747806644733,-430.0,0.00017534,2]
[361796172,1747806644743,-430.0,0.00017534,2]
[361796173,1747806644753,-430.0,0.00017534,2]
[361796174,1747806644762,-430.0,0.00017534,2]
[361796175,1747806644772,-522.34731567,0.00017534,2]
[361796176,1747806644788,-330.04268433,0.00017534,2]
[361796177,1747806644799,-430.0,0.00017534,2]
[361796178,1747806644808,-430.0,0.00017534,2]
[361796179,1747806644818,-430.0,0.00017534,2]
[361796180,1747806644829,-430.0,0.00017534,2]
[361796181,1747806644839,-543.19,0.00017534,2]
[361796182,1747806644850,-430.0,0.00017534,2]
[361796183,1747806644860,-87.18503576,0.00017534,2]
[361796184,1747806644877,-342.81496424,0.00017534,2]
[361796185,1747806644887,-430.0,0.00017534,2]
[361796186,1747806644896,-430.0,0.00017534,2]
[361796187,1747806644906,-546.11,0.00017534,2]
[361796188,1747806644916,-430.0,0.00017534,2]
[361796189,1747806644926,-430.0,0.00017534,2]
[361796190,1747806644935,-430.0,0.00017534,2]
[361796191,1747806644946,-488.99,0.00017534,2]
[361796192,1747806644955,-430.0,0.00017534,2]
[361796193,1747806644965,-430.0,0.00017534,2]
[361796194,1747806644974,-430.0,0.00017534,2]
[361796195,1747806644984,-430.0,0.00017534,2]
[361796196,1747806644994,-922.87,0.00017534,2]
[361796197,1747806645004,-3704.68119828,0.00017624,2]
[361796198,1747806645014,-303.59554,0.00017649,2]
[361796199,1747806645024,-653.26630214,0.00017769,2]
[361796200,1747806645034,-500.0,0.00017807,2]
[361796201,1747806645043,-476.17646508,0.00017807,2]
[361796202,1747806645053,-500.0,0.00017807,2]
[361796203,1747806645063,-502.8,0.00017808,2]
[361796204,1747806645073,-430.0,0.00017808,2]
[361796205,1747806645082,-430.0,0.00017808,2]
[361796206,1747806645094,-430.0,0.00017808,2]
[361796207,1747806645104,-967.93,0.00017808,2]
[361796208,1747806645115,-430.0,0.00017808,2]
[361796209,1747806645124,-430.0,0.00017808,2]
[361796210,1747806645134,-430.0,0.00017808,2]
[361796211,1747806645143,-430.0,0.00017808,2]
[361796212,1747806645156,-852.39,0.00017808,2]
[361796213,1747806645169,-430.0,0.00017808,2]
[361796214,1747806645181,-430.0,0.00017808,2]
[361796215,1747806645191,-430.0,0.00017808,2]
[361796216,1747806645201,-430.0,0.00017808,2]
[361796217,1747806645211,-430.0,0.00017808,2]
[361796218,1747806645221,-430.0,0.00017808,2]
[361796219,1747806645231,-430.0,0.00017808,2]
[361796220,1747806645241,-430.0,0.00017808,2]
[361796221,1747806645252,-546.11,0.00017808,2]
[361796222,1747806645262,-433.69507204,0.00017808,2]
[361796223,1747806645272,-430.0,0.00017808,2]
[361796224,1747806645281,-430.0,0.00017808,2]
[361796225,1747806645291,-488.99,0.00017808,2]
[361796226,1747806645302,-430.0,0.00017808,2]
[361796227,1747806645312,-430.0,0.00017808,2]
[361796228,1747806645322,-430.0,0.00017808,2]
[361796229,1747806645332,-430.0,0.00017808,2]
[361796230,1747806645344,-922.87,0.00017808,2]
[361796231,1747806645354,-507.93830376,0.00017858,2]
[361796232,1747806645364,-501.20820914,0.00017858,2]
[361796233,1747806645374,-505.65606419,0.00017858,2]
[361796234,1747806645383,-508.29191135,0.00017968,2]
[361796235,1747806645394,-3704.68119828,0.00017969,2]
[361796236,1747806645404,-182.6967704,0.00018,2]
[361796237,1747806645414,-282.9,0.00018,2]
[361796238,1747806645424,-151.0,0.00018,2]
[361796239,1747806645434,-199.74320023,0.00018,2]
[361796240,1747806645444,-505.33103743,0.00018024,2]
[361796241,1747806645454,-160.0,0.00018071,2]
[361796242,1747806645464,-314.5140147,0.00018071,2]
[361796243,1747806645474,-160.0,0.00018071,2]
[361796244,1747806645483,-160.0,0.00018071,2]
[361796245,1747806645493,-212.41679935,0.00018071,2]
[361796246,1747806645504,-422.71322487,0.00018071,2]
[361796247,1747806645513,-388.13770252,0.00018071,2]
[361796248,1747806645628,-506.50813081,0.00018071,2]
[361796249,1747806645639,-4616.96027392,0.00018071,2]
[361796260,1747806648956,-157.35054969,0.00018071,2]
[361796261,1747806649055,-151.0,0.00018071,2]
[361796262,1747806649064,-195.58188356,0.00018071,2]
[361796263,1747806649074,-428.32563372,0.00018071,2]
[361796265,1747807411968,-281.98251347,0.00013426,2]
[361796266,1747807418066,-177.54951878,0.00013426,2]
[361796267,1747807603080,-338.43435853,0.00013292,2]
[361796268,1747807605955,-193.60574598,0.00013292,2]
[361796269,1747807610361,-227.96385109,0.00013292,2]
[361796270,1747807612438,-152.0,0.00013292,2]
[361796271,1747807615001,-180.81760979,0.00013292,2]
[361796272,1747807616546,-154.7466949,0.00013292,2]
[361796273,1747807620373,-288.09883264,0.00013292,2]
[361796274,1747807621816,-152.0,0.00013292,2]
[361796275,1747807623957,-263.22628436,0.00013292,2]
[361796276,1747807627527,-177.14616519,0.00013292,2]
[361796277,1747807629672,-172.58301585,0.00013292,2]
[361796278,1747807631340,-189.06289489,0.00013292,2]
[361796279,1747807636941,-206.76423893,0.00013292,2]
[361796280,1747807638438,-308.03846108,0.00013292,2]
[361796281,1747807641625,-173.157137,0.00013292,2]
[361796282,1747807643180,-164.83253891,0.00013292,2]
[361796283,1747807650853,-249.64860836,0.00013292,2]
[361796284,1747807653532,-319.81311882,0.00013292,2]
[361796285,1747807657220,-207.04551025,0.00013292,2]
[361796286,1747807659432,-186.42162141,0.00013292,2]
[361796287,1747807661404,-210.27881232,0.00013292,2]
[361796288,1747807663048,-216.13155801,0.00013292,2]
[361796289,1747807664678,-255.10301585,0.00013292,2]
[361796290,1747807666739,-13.07992584,0.00013292,2]
[361796330,1747807832038,-5000.0,0.00013562,2]
[361796331,1747807832053,-312.090515,0.00013699,2]
[361796332,1747807832069,-171.77017257,0.00015727,2]
[361796333,1747807832084,-156.58770561,0.00015727,2]
[361796334,1747807832098,-235.1942064,0.00016123,2]
[361796335,1747807832111,-171.77017256,0.00016213,2]
[361796336,1747807832129,-156.5877056,0.00016213,2]
[361796337,1747807832141,-300.0,0.00016437,2]
[361796338,1747807832155,-300.0,0.00016437,2]
[361796339,1747807832167,-430.0,0.00016438,2]
[361796340,1747807832178,-692.15,0.00016438,2]
[361796341,1747807832189,-430.0,0.00016438,2]
[361796342,1747807832200,-430.0,0.00016438,2]
[361796343,1747807832210,-204.67353765,0.00016438,2]
[361796344,1747807832220,-725.95,0.00016438,2]
[361796345,1747807832230,-430.0,0.00016438,2]
[361796346,1747807832240,-430.0,0.00016438,2]
[361796347,1747807832250,-430.0,0.00016438,2]
[361796348,1747807832260,-430.0,0.00016438,2]
[361796349,1747807832270,-639.29,0.00016438,2]
[361796350,1747807832556,-430.0,0.00016438,2]
[361796351,1747807832571,-430.0,0.00016438,2]
[361796352,1747807832582,-430.0,0.00016438,2]
[361796353,1747807832592,-352.80608057,0.00016438,2]
[361796354,1747807832602,-243.15943805,0.00016438,2]
[361796355,1747807832612,-430.0,0.00016438,2]
[361796356,1747807832622,-430.0,0.00016438,2]
[361796357,1747807832631,-430.0,0.00016438,2]
[361796358,1747807832641,-302.49,0.00016438,2]
[361796359,1747807832652,-430.0,0.00016438,2]
[361796360,1747807832661,-430.0,0.00016438,2]
[361796361,1747807832671,-479.0,0.00016438,2]
[361796362,1747807832681,-430.0,0.00016438,2]
[361796363,1747807832691,-430.0,0.00016438,2]
[361796364,1747807832701,-430.0,0.00016712,2]
[361796365,1747807832711,-111.7396859,0.00016712,2]
[361796432,1747807840274,-146.92434334,0.00013426,2]
[361796449,1747807844031,-828.6750025,0.00013426,2]
[361796468,1747808023011,-293.24404593,0.00013292,2]
[361796469,1747808025638,-197.031022,0.00013292,2]
[361796470,1747808030025,-151.71809536,0.00013292,2]
[361796471,1747808033140,-200.0,0.00013292,2]
[361796472,1747808035973,-162.77430179,0.00013292,2]
[361796473,1747808039394,-152.0,0.00013292,2]
[361796474,1747808041528,-271.59179658,0.00013292,2]
[361796475,1747808043774,-162.22875713,0.00013292,2]
[361796476,1747808046377,-255.58225956,0.00013292,2]
[361796477,1747808049629,-200.06862657,0.00013292,2]
[361796478,1747808052161,-328.72610313,0.00013292,2]
[361796479,1747808054721,-380.70569851,0.00013292,2]
[361796480,1747808056764,-285.90165442,0.00013292,2]
[361796481,1747808058859,-230.23822979,0.00013292,2]
[361796482,1747808061569,-343.0720146,0.00013292,2]
[361796483,1747808064383,-413.51083107,0.00013292,2]
[361796484,1747808067395,-261.929531,0.00013292,2]
[361796485,1747808069409,-260.31795641,0.00013292,2]
[361796486,1747808073781,-239.68204359,0.00013292,2]
[361796487,1747808075817,-209.67703256,0.00013292,2]
[361796489,1747808081837,-153.55892945,0.00013159,2]
[361796491,1747808084196,-180.03912739,0.00013159,2]
[361796492,1747808086348,-179.23776153,0.00013159,2]
[361796493,1747808088500,-159.3640302,0.00013159,2]
[361796494,1747808091130,-295.5929437,0.00013159,2]
[361796495,1747808093843,-210.90385956,0.00013159,2]
[361796496,1747808096917,-303.43348442,0.00013159,2]
[361796497,1747808101624,-164.67862398,0.00013159,2]
[361796498,1747808103149,-203.15041354,0.00013159,2]
[361796499,1747808105223,-200.05319341,0.00013159,2]
[361796500,1747808110671,-296.05895351,0.00013159,2]
[361796501,1747808112556,-165.8948228,0.00013159,2]
[361796502,1747808114645,-166.94641052,0.00013159,2]
[361796503,1747808117229,-226.91797032,0.00013159,2]
[361796504,1747808119366,-181.0,0.00013159,2]
[361796505,1747808121385,-208.71843324,0.00013159,2]
[361796506,1747808123933,-223.5143695,0.00013159,2]
[361796507,1747808125880,-239.19050477,0.00013159,2]
[361796508,1747808131436,-229.0914388,0.00013159,2]
[361796509,1747808132856,-225.76962201,0.00013159,2]
[361796510,1747808134420,-177.38913363,0.00013159,2]
[361796511,1747808136346,-500.0,0.00013159,2]
[361796512,1747808136959,-109.49597372,0.00013159,2]
[361796514,1747808139334,5000.0,0.00013,2]
[361796531,1747808719978,5000.0,0.00013,2]
[361796533,1747808721331,1428.78865208,0.00019,30]
[361796541,1747808735228,5000.0,0.00013,2]
[361796545,1747808736917,-171.77017257,0.00013105,2]
[361796556,1747808812596,-155.0,0.00013105,2]
[361796557,1747808815362,-16.77017256,0.00013105,2]
[361796563,1747808908647,280.07040376,0.0001,2]
[361796570,1747808967111,-5000.0,0.00013562,2]
[361796571,1747808967134,-211.23651144,0.00013699,2]
[361796629,1747809031991,-5000.0,0.00013562,2]
[361796631,1747809032001,-108.71553756,0.00013699,2]
[361796633,1747809032011,-300.0,0.0001527,2]
[361796635,1747809032021,-300.0,0.0001527,2]
[361796637,1747809032031,-300.0,0.0001527,2]
[361796639,1747809032040,-24900.0,0.00015271,2]
[361796641,1747809032050,-370.86523347,0.00015554,2]
[361796643,1747809032065,-643.06661699,0.00015654,2]
[361796645,1747809032075,-275.18966371,0.00015654,2]
[361796647,1747809032085,-500.0,0.00015654,2]
[361796649,1747809032096,-500.0,0.00015654,2]
[361796651,1747809032107,-171.67737934,0.00015654,2]
[361796653,1747809032117,-392.16452115,0.00015654,2]
[361796655,1747809032127,-500.0,0.00015654,2]
[361796657,1747809032138,-500.0,0.00015654,2]
[361796660,1747809032148,-500.0,0.00015654,2]
[361796663,1747809032158,-500.0,0.00015654,2]
[361796666,1747809032168,-500.0,0.00015654,2]
[361796667,1747809032178,-500.0,0.00015654,2]
[361796669,1747809032188,-500.0,0.00015654,2]
[361796672,1747809032200,-500.0,0.00015654,2]
[361796674,1747809032210,-500.0,0.00015654,2]
[361796678,1747809032219,-500.0,0.00015654,2]
[361796680,1747809032229,-279.06031496,0.00015654,2]
[361796682,1747809032239,-500.0,0.00015654,2]
[361796684,1747809032249,-500.0,0.00015654,2]
[361796686,1747809032259,-596.50175956,0.00015654,2]
[361796687,1747809032268,-500.0,0.00015654,2]
[361796690,1747809032278,-500.0,0.00015654,2]
[361796691,1747809032288,-253.2262398,0.00015732,2]
[361796693,1747809032299,-8485.98859335,0.00015899,3]
[361796695,1747809032309,-5518.55947758,0.000159,2]
[361796696,1747809032321,-598.16471941,0.000159,2]
[361796697,1747809032333,-37543.00492376,0.000159,2]
[361796732,1747809037876,-4209.36835794,0.000159,2]
[361796791,1747809040769,-5.38258021,0.000159,2]
[361796792,1747809040891,-3809.43418807,0.000159,2]
[361796846,1747809044333,-690.62736126,0.00015741,2]
[361796865,1747809046170,-4309.37263874,0.00015741,2]
[361796866,1747809046179,-5402.95928435,0.000159,2]
[361796867,1747809046189,-697.28694524,0.000159,2]
[361796872,1747809046336,-2231.24199882,0.000159,2]
[361796873,1747809046347,-518.54099232,0.00015931,2]
[361796874,1747809046356,-152.0,0.00016009,2]
[361796876,1747809046367,-2928.52894389,0.00016245,2]
[361796878,1747809046381,-533.50287803,0.00016437,2]
[361796880,1747809046391,-500.0,0.00016437,2]
[361796882,1747809046401,-533.32352556,0.00016437,2]
[361796884,1747809046412,-239.70870465,0.00016438,2]
[361796885,1747809046423,-453.23880902,0.00016438,2]
[361796887,1747809046434,-355.9517106,0.00016438,2]
[361796889,1747809046444,-451.43170569,0.00016438,2]
[361796891,1747809046456,-401.99101254,0.00016438,2]
[361796893,1747809046467,-353.71231112,0.00016438,2]
[361796895,1747809046477,-451.10032663,0.00016438,2]
[361796897,1747809046487,-358.10304155,0.00016438,2]
[361796899,1747809046497,-152.89927351,0.00016438,2]
[361796902,1747809046516,-414.5797789,0.00016438,2]
[361796904,1747809046529,-430.0,0.00016438,2]
[361796906,1747809046539,-430.0,0.00016438,2]
[361796908,1747809046549,-658.65,0.00016438,2]
[361796910,1747809046559,-430.0,0.00016438,2]
[361796912,1747809046570,-430.0,0.00016438,2]
[361796914,1747809046580,-430.0,0.00016438,2]
[361796916,1747809046591,-695.7,0.00016438,2]
[361796918,1747809046600,-430.0,0.00016438,2]
[361796920,1747809046610,-612.65,0.00016438,2]
[361796922,1747809046621,-405.52953851,0.00016438,2]
[361796924,1747809046631,-430.0,0.00016438,2]
[361796926,1747809046641,-430.0,0.00016438,2]
[361796928,1747809046650,-430.0,0.00016438,2]
[361796930,1747809046661,-430.0,0.00016438,2]
[361796932,1747809046671,-430.0,0.00016438,2]
[361796934,1747809046680,-430.0,0.00016438,2]
[361796936,1747809046690,-404.49380786,0.00016438,2]
[361796938,1747809046701,-430.0,0.00016438,2]
[361796940,1747809046711,-443.92716718,0.00016438,2]
[361796942,1747809046721,-430.0,0.00016438,2]
[361796944,1747809046731,-430.0,0.00016438,2]
[361796946,1747809046741,-430.0,0.00016438,2]
[361796948,1747809046751,-430.0,0.00016438,2]
[361796950,1747809046761,-430.0,0.00016438,2]
[361796951,1747809046771,-430.0,0.00016438,2]
[361796953,1747809046781,-430.0,0.00016438,2]
[361796955,1747809046791,-430.0,0.00016438,2]
[361796957,1747809046800,-430.0,0.00016438,2]
[361796959,1747809046810,-430.0,0.00016438,2]
[361796961,1747809046819,-430.0,0.00016438,2]
[361796962,1747809046828,-430.0,0.00016438,2]
[361796964,1747809046838,-512.66100352,0.00016464,2]
[361796966,1747809046848,-2928.52894389,0.0001659,2]
[361796968,1747809046857,-150.29,0.00016702,3]
[361796970,1747809046867,-420.0,0.00016708,2]
[361796972,1747809046876,-420.0,0.00016708,2]
[361796974,1747809046886,-253.97017869,0.00016712,2]
[361796976,1747809046897,-306.49,0.00016712,2]
[361796978,1747809046908,-658.65,0.00016712,2]
[361796980,1747809046918,-430.0,0.00016712,2]
[361796982,1747809046928,-430.0,0.00016712,2]
[361796984,1747809046938,-430.0,0.00016712,2]
[361796986,1747809046948,-695.7,0.00016712,2]
[361796988,1747809046959,-430.0,0.00016712,2]
[361796989,1747809046969,-612.65,0.00016712,2]
[361796991,1747809046978,-430.0,0.00016712,2]
[361796993,1747809046988,-430.0,0.00016712,2]
[361796995,1747809046998,-430.0,0.00016712,2]
[361796997,1747809047008,-436.805114,0.00016712,2]
[361796999,1747809047018,-430.0,0.00016712,2]
[361797001,1747809047027,-430.0,0.00016712,2]
[361797003,1747809047037,-430.0,0.00016712,2]
[361797004,1747809047047,-430.0,0.00016712,2]
[361797006,1747809047057,-430.0,0.00016712,2]
[361797008,1747809047067,-430.0,0.00016712,2]
[361797010,1747809047078,-430.0,0.00016712,2]
[361797012,1747809047088,-175.98,0.00016712,2]
[361797014,1747809047098,-430.0,0.00016712,2]
[361797016,1747809047108,-430.0,0.00016712,2]
[361797018,1747809047123,-300.59,0.00016712,3]
[361797020,1747809047134,-425.10448875,0.00016722,2]
[361797022,1747809047144,-2928.52894389,0.00016934,2]
[361797024,1747809047155,-370.8652334,0.00016965,2]
[361797026,1747809047166,-658.65,0.00016986,2]
[361797028,1747809047177,-430.0,0.00016986,2]
[361797030,1747809047188,-430.0,0.00016986,2]
[361797031,1747809047198,-430.0,0.00016986,2]
[361797032,1747809047213,-695.7,0.00016986,2]
[361797033,1747809047223,-430.0,0.00016986,2]
[361797034,1747809047232,-612.65,0.00016986,2]
[361797035,1747809047242,-430.0,0.00016986,2]
[361797036,1747809047252,-430.0,0.00016986,2]
[361797037,1747809047262,-430.0,0.00016986,2]
[361797038,1747809047272,-430.0,0.00016986,2]
[361797039,1747809047283,-430.0,0.00016986,2]
[361797040,1747809047293,-430.0,0.00016986,2]
[361797041,1747809047304,-430.0,0.00016986,2]
[361797042,1747809047314,-430.0,0.00016986,2]
[361797043,1747809047323,-430.0,0.00016986,2]
[361797044,1747809047333,-430.0,0.00016986,2]
[361797045,1747809047343,-430.0,0.00016986,2]
[361797046,1747809047353,-430.0,0.00016986,2]
[361797047,1747809047367,-2000.000001,0.00017,2]
[361797048,1747809047378,-450.91,0.0001725,3]
[361797049,1747809047388,-151.0,0.0001726,2]
[361797050,1747809047399,-151.0,0.0001726,2]
[361797051,1747809047410,-658.65,0.0001726,2]
[361797052,1747809047420,-544.84564788,0.0001726,2]
[361797053,1747809047430,-430.0,0.0001726,2]
[361797054,1747809047440,-430.0,0.0001726,2]
[361797055,1747809047452,-695.7,0.0001726,2]
[361797056,1747809047461,-151.0,0.0001726,2]
[361797057,1747809047471,-430.0,0.0001726,2]
[361797058,1747809047480,-151.0,0.0001726,2]
[361797059,1747809047490,-612.65,0.0001726,2]
[361797060,1747809047500,-430.0,0.0001726,2]
[361797061,1747809047510,-430.0,0.0001726,2]
[361797062,1747809047520,-430.0,0.0001726,2]
[361797063,1747809047530,-430.0,0.0001726,2]
[361797064,1747809047540,-430.0,0.0001726,2]
[361797065,1747809047549,-430.0,0.0001726,2]
[361797066,1747809047559,-430.0,0.0001726,2]
[361797067,1747809047569,-430.0,0.0001726,2]
[361797068,1747809047579,-430.0,0.0001726,2]
[361797069,1747809047589,-430.0,0.0001726,2]
[361797070,1747809047599,-430.0,0.0001726,2]
[361797071,1747809047608,-517.72,0.0001726,2]
[361797072,1747809047618,-2928.52894389,0.00017279,2]
[361797073,1747809047628,-518.5409923,0.00017417,2]
[361797074,1747809047637,-658.65,0.00017534,2]
[361797075,1747809047647,-419.15153098,0.00017534,2]
[361797076,1747809047656,-430.0,0.00017534,2]
[361797077,1747809047666,-695.7,0.00017534,2]
[361797078,1747809047675,-430.0,0.00017534,2]
[361797079,1747809047685,-612.65,0.00017534,2]
[361797080,1747809047695,-430.0,0.00017534,2]
[361797081,1747809047705,-448.70781002,0.00017534,2]
[361797082,1747809047715,-430.0,0.00017534,2]
[361797083,1747809047915,-430.0,0.00017534,2]
[361797084,1747809047927,-430.0,0.00017534,2]
[361797085,1747809047936,-430.0,0.00017534,2]
[361797086,1747809047946,-430.0,0.00017534,2]
[361797087,1747809047956,-430.0,0.00017534,2]
[361797088,1747809047966,-430.0,0.00017534,2]
[361797089,1747809047975,-430.0,0.00017534,2]
[361797090,1747809047984,-151.0,0.00017534,2]
[361797091,1747809047994,-430.0,0.00017534,2]
[361797092,1747809048003,-153.0,0.00017616,2]
[361797093,1747809048012,-154.0496447,0.00017616,2]
[361797094,1747809048022,-151.0,0.00017624,2]
[361797095,1747809048032,-151.0,0.00017624,2]
[361797096,1747809048041,-151.0,0.00017624,2]
[361797097,1747809048051,-151.0,0.00017624,2]
[361797098,1747809048062,-2928.52894389,0.00017624,2]
[361797099,1747809048073,-555.799819,0.00017709,2]
[361797100,1747809048082,-151.0,0.00017709,2]
[361797101,1747809048093,-194.666865,0.00017709,2]
[361797102,1747809048103,-194.666865,0.00017709,2]
[361797103,1747809048112,-4435.00981545,0.00017747,2]
[361797104,1747809048121,-151.0,0.00017747,2]
[361797105,1747809048132,-151.0,0.00017747,2]
[361797106,1747809048142,-207.4,0.00017747,2]
[361797107,1747809048155,-202.190636,0.00017747,2]
[361797108,1747809048165,-202.190636,0.00017747,2]
[361797109,1747809048176,-255.335323,0.00017747,2]
[361797110,1747809048187,-255.335323,0.00017747,2]
[361797111,1747809048197,-151.0,0.00017747,2]
[361797112,1747809048209,-151.0,0.00017747,2]
[361797113,1747809048218,-420.965103,0.00017747,2]
[361797114,1747809048228,-420.965103,0.00017747,2]
[361797115,1747809048237,-658.65,0.00017808,2]
[361797116,1747809048246,-430.0,0.00017808,2]
[361797117,1747809048256,-695.7,0.00017808,2]
[361797118,1747809048266,-430.0,0.00017808,2]
[361797119,1747809048276,-612.65,0.00017808,2]
[361797120,1747809048285,-430.0,0.00017808,2]
[361797121,1747809048295,-430.0,0.00017808,2]
[361797122,1747809048305,-430.0,0.00017808,2]
[361797123,1747809048314,-430.0,0.00017808,2]
[361797124,1747809048325,-430.0,0.00017808,2]
[361797125,1747809048334,-187.30914399,0.00017808,2]
[361797126,1747809048344,-430.0,0.00017808,2]
[361797127,1747809048354,-430.0,0.00017808,2]
[361797128,1747809048364,-392.6,0.00017808,2]
[361797129,1747809048378,-430.0,0.00017808,2]
[361797130,1747809048388,-2928.52894389,0.00017969,2]
[361797131,1747809048399,-160.0,0.00017996,2]
[361797132,1747809048408,-314.5140147,0.00017996,2]
[361797133,1747809048419,-894.64583333,0.00017996,2]
[361797134,1747809048428,-12643.00196899,0.00017996,2]
[361797135,1747809048438,-422.71322487,0.00017996,2]
[361797136,1747809048448,-160.0,0.00017996,2]
[361797137,1747809048459,-160.0,0.00017996,2]
[361797138,1747809048469,-212.41679935,0.00017996,2]
[361797139,1747809048479,-160.191233,0.00017996,2]
[361797140,1747809048488,-160.191233,0.00017996,2]
[361797141,1747809048498,-194.0,0.00018,7]
[361797142,1747809048509,-2004.55985225,0.00018,2]
[361797143,1747809048519,-62095.64399914,0.00018,2]
[361797144,1747809048528,-151.0,0.00018,2]
[361797145,1747809048538,-151.0,0.00018,2]
[361797146,1747809048547,-151.0,0.00018,2]
[361797147,1747809048557,-151.0,0.00018,2]
[361797148,1747809048567,-151.0,0.00018,2]
[361797149,1747809048576,-194.666865,0.00018,2]
[361797150,1747809048586,-194.666865,0.00018,2]
[361797151,1747809048608,-151.0,0.00018,2]
[361797152,1747809048618,-151.0,0.00018,2]
[361797153,1747809048628,-151.0,0.00018,2]